{"text_format":"3","workbook":"xlsx","n_sheets":3,"sheets":["Lista chequeo entrega - recibo","Lista de chequeo para tabular","Instructivo"],"not_rendered":{"charts":1,"images":1},"read":"whole","date_system":"1900"}

{"sheet":"Lista chequeo entrega - recibo","index":0,"n_rows":66,"n_cols":12,"rows_kept":66,"merged":[[0,0,3,0],[0,1,0,9],[1,1,3,9],[3,10,3,11],[4,0,4,11],[5,0,5,2],[5,3,5,5],[5,6,5,8],[5,9,5,11],[6,0,6,11],[7,0,8,0],[7,1,8,1],[7,2,8,4],[7,5,7,7],[7,8,8,11],[9,0,31,0],[9,2,9,4],[9,8,9,11],[10,2,10,4],[10,8,10,11],[11,2,11,4],[11,8,11,11],[12,2,12,4],[12,8,12,11],[13,2,13,4],[13,8,13,11],[14,2,14,4],[14,8,14,11],[15,2,15,4],[15,8,15,11],[16,2,16,4],[16,8,16,11],[17,2,17,4],[17,8,17,11],[18,2,18,4],[18,8,18,11],[19,2,19,4],[19,8,19,11],[20,2,20,4],[20,8,20,11],[21,2,21,4],[21,8,21,11],[22,2,22,4],[22,8,22,11],[23,2,23,4],[23,8,23,11],[24,2,24,4],[24,8,24,11],[25,2,25,4],[25,8,25,11],[26,2,26,4],[26,8,26,11],[27,2,27,4],[27,8,27,11],[28,2,28,4],[28,8,28,11],[29,2,29,4],[29,8,29,11],[30,2,30,4],[30,8,30,11],[31,1,31,4],[31,8,31,11],[32,0,34,0],[32,2,32,4],[32,8,32,11],[33,2,33,4],[33,8,33,11],[34,2,34,4],[34,8,34,11],[35,0,35,4],[35,8,35,11],[37,1,37,4],[38,1,38,4],[38,5,38,7],[40,0,40,4],[41,0,41,1],[41,2,41,4],[42,0,42,1],[42,2,42,4],[43,0,43,1],[43,2,43,4],[44,0,44,1],[44,2,44,4],[45,0,45,1],[45,2,45,4],[51,3,51,9],[52,3,52,9]]}
[null,"FORMATO",{"$nulls":8},"CODIGO","GC-S4-F12"]
[null,"  BASE DE DATOS LISTA DE CHEQUEO ENTREGA  Y RECIBO  DE TURNO MÉDICO Y PERSONAL DE ENFERMERÍA",{"$nulls":8},"VERSIÓN",6]
[{"$nulls":10},"VIGENCIA","2022-01-05"]
[{"$nulls":10},"PAGINA 1 DE 3"]
["OBJETIVO: Verificar las condiciones de entrega y recibo de turno médico y del personal de enfermería con la finalidad de garantizar la  calidad de los servicios a los pacientes  de la E.S.E. Carmen  Emilia Ospina."]
["SEDE:",null,null,"SERVICIO:",null,null,"FECHA:",null,null,"TURNO:  M___  T___ N___"]
[]
["ASPECTO ","No.","CRITERIO",null,null,"CUMPLIMIENTO",null,null,"OBSERVACIONES"]
[{"$nulls":5},"C","NC","NA"]
["GENERALIDADES",1,"La entrega y recibo de turno se realiza a la hora estipulada (7:00 am, 1:00 pm, 7:00 pm respectivamente). "]
[null,2,"Esta presente todo el personal  que recibe y entrega turno (médicos, auxiliares de enfermería, enfermera Jefe). "]
[null,3,"Se solicita a  los familiares que salgan de la habitación."," Se solicita a  los familiares que salgan de la Habitación "," Se solicita a  los familiares que salgan de la Habitación "]
[null,4,"El personal cumple con el protocolo de lavado de manos antes y durante la entrega de turno."]
[null,5,"Si  el paciente está dormido se despierta, si  tiene la cabeza  cubierta  descubrirla, para que las personas que reciben y entregan turno se den cuenta de las condiciones en que esta el paciente. ","Si  el paciente está dormido se despierta, si  tiene la cabeza  cubierta  descubrirla, para que las personas que reciben y entregan turno se den cuenta de las condiciones en que esta el paciente. ","Si  el paciente está dormido se despierta, si  tiene la cabeza  cubierta  descubrirla, para que las personas que reciben y entregan turno se den cuenta de las condiciones en que esta el paciente. "]
[null,6,"En la entrega y recibo de turno se  identifica  al paciente por su nombre, no por el diagnóstico o número de cama. ","En la entrega y recibo de turno se   Identifica  al paciente por su nombre, no por el diagnóstico o número de cama. ","En la entrega y recibo de turno se   Identifica  al paciente por su nombre, no por el diagnóstico o número de cama. "]
[null,7,"Realiza la verificación del estado de venopunción del paciente, liquidos, sondas, lesiones  del paciente,   identificación. "]
[null,8,"Se brinda información sobre  la presentación del personal que ingresa al turno, derechos y deberes de los pacientes, barreras de seguridad respecto a los riesgos del paciente.","En el proceso de entrega y recibo de turno se expone por parte de la Enfermera la situacion del paciente en cuanto a:","En el proceso de entrega y recibo de turno se expone por parte de la Enfermera la situacion del paciente en cuanto a:"]
[null,9,"En el proceso de entrega y recibo de turno se expone por parte de la enfermera la situación del paciente en cuanto a : Diagnóstico"," Diagnóstico"," Diagnóstico"]
[null,10,"Riesgos"]
[null,11,"Signos vitales "]
[null,12,"Estado de conciencia "]
[null,13,"Oxígeno que se está administrando,cantidad.","Oxígeno que se está administrando, cantidad, saturación según el caso.","Oxígeno que se está administrando, cantidad, saturación según el caso."]
[null,14,"Líquidos intravenosos administrados, tipo de soluciónes o mezclas y cantidad por hora.,balance de líquidos del turno, balance acumulado para los turnos de la noche. "," Líquidos intravenosos administrados, tipo de soluciones o mezclas y cantidad por hora. Balance de líquidos del turno, balance acumulado para los turnos de la noche. "," Líquidos intravenosos administrados, tipo de soluciones o mezclas y cantidad por hora. Balance de líquidos del turno, balance acumulado para los turnos de la noche. "]
[null,15,"Diuresis espontánea o por sonda, cantidad y características. ","Diuresis espontánea o por sonda, cantidad y características. ","Diuresis espontánea o por sonda, cantidad y características. "]
[null,16,"Inmovilizaciónes.","Inmovilizaciónes.","Inmovilizaciónes."]
[null,17,"Reporte de  Ayudas diagnósticas y/o terapéuticas realizadas o pendientes por realizar, Traslado pendiente, solicitud de ambulancia o no, información al familiar. ","Reporte de  Ayudas diagnósticas y/o terapéuticas realizadas o pendientes por realizar, Traslado pendiente, solicitud de ambulancia o no, información al familiar. ","Reporte de  Ayudas diagnósticas y/o terapéuticas realizadas o pendientes por realizar, Traslado pendiente, solicitud de ambulancia o no, información al familiar. "]
[null,18,"Plan de manejo actual. "]
[null,19,"Para las pacientes de ginecobtetricia, registre si tiene el recién nacido en alojamiento conjunto: sexo, vacunación,laboratorios, exámenes, procedimientos realizados y pendientes, si esta pendiente la salida, etc"," Para las pacientes de ginecobtetricia, registre si tiene el recién nacido en alojamiento conjunto: sexo, laboratorios, exámenes, procedimientos realizados y pendientes, si esta pendiente la salida, etc"," Para las pacientes de ginecobtetricia, registre si tiene el recién nacido en alojamiento conjunto: sexo, laboratorios, exámenes, procedimientos realizados y pendientes, si esta pendiente la salida, etc"]
[null,20,"Para los pacientes con lesiones en la piel, registre el estado  y la evolución de la misma. ( Si se realizá o no curación) "]
[null,21,"Para los gestantes registre semanas de gestación, fetocardía,actividad uterina, movimientos fetales, perdidas vaginales. "]
[null,22,"Entregue el paciente limpio y la unidad en orden.","Entregue el paciente limpio y la unidad en orden.","Entregue el paciente limpio y la unidad en orden."]
[null,"SUBTOTAL",{"$nulls":3},{"$f":"COUNTIF(F10:F31,\"X\")","v":0},{"$f":"COUNTIF(G10:G31,\"X\")","v":0},{"$f":"COUNTIF(H10:H31,\"X\")","v":0}]
["EQUIPOS E INSUMOS",23,"Se informa sobre el estado del carro de paro: abierto, cerrado (completo e incompleto), monitor de signos vitales, electrocardiografo, desfibrilador, equipo de succión, laringoscopio, ambu."]
[null,24,"Se reportan los equipos dañados y/o el estado de funcionamiento de los mismos, si hay daños en infraestructura."]
[null,25,"Informe de  novedades acerca de insumos médicos, faltantes en medicamentos,  daño de equipos para proceso de exámenes diagnósticos, rayos X, etc, camas pendientes y/o inhabilitadas."]
["SUBTOTAL",{"$nulls":4},{"$f":"COUNTIF(F33:F35,\"X\")","v":0},{"$f":"COUNTIF(G33:G35,\"X\")","v":0},{"$f":"COUNTIF(H33:H35,\"X\")","v":0}]
[]
[null,"NÚMERO DE CRITERIOS","NUMERO DE ITEMS","NUMERO DE ITEMS","NUMERO DE ITEMS",{"$f":"SUM(F32+F36)","v":0},{"$f":"SUM(G32+G36)","v":0},{"$f":"SUM(H32+H36)","v":0}]
[null,"% CUMPLIMIENTO","% CUMPLIMIENTO","% CUMPLIMIENTO","% CUMPLIMIENTO",{"$f":"F38/(SUM(F38+G38))","v":{"$error":"#DIV/0!"}}]
[]
["EVALUACIÓN"]
["OPTIMA",null,"mayor  de 95%","mayor  de 95%","mayor  de 95%"]
["ADECUADA",null,"85.1%  a   95%","85.1%  a   95%","85.1%  a   95%"]
["ACEPTABLE ",null,"70.1%  a   85%","70.1%  a   85%","70.1%  a   85%"]
["DEFICIENTE",null,"55.1%  a   70%","55.1%  a   70%","55.1%  a   70%"]
["INACEPTABLE",null,"menor del 55%","menor del 55%","menor del 55%"]
[]
[]
[]
[]
[]
[]
[{"$nulls":3},"NOMBRE Y  FIRMA DEL AUDITOR"]
{"$rows_empty":10}
[{"$nulls":8},"ASPECTOS","CUMPLIMIENTO SIN CONTAR LOS N/A"]
[{"$nulls":8},"GENERALIDADES",{"$f":"(F32/(SUM(F32+G32)))","v":{"$error":"#DIV/0!"}}]
[{"$nulls":8},"EQUIPOS E INSUMOS",{"$f":"(F36/(SUM(F36+G36)))","v":{"$error":"#DIV/0!"}}]

{"sheet":"Lista de chequeo para tabular","index":1,"n_rows":36,"n_cols":47,"rows_kept":36,"merged":[[0,0,3,0],[0,1,0,38],[1,1,3,38],[3,39,3,40],[4,0,4,40],[5,0,7,0],[5,1,7,1],[5,2,7,2],[5,3,7,3],[5,4,7,4],[5,5,5,26],[5,27,7,27],[5,28,7,28],[5,29,7,29],[5,30,5,32],[5,33,7,33],[5,34,7,34],[5,35,7,35],[5,36,7,36],[5,37,7,37],[5,38,7,38],[5,39,7,40],[8,39,8,40],[9,39,9,40],[10,39,10,40],[11,39,11,40],[12,39,12,40],[13,39,13,40],[14,39,14,40],[15,39,15,40],[16,39,16,40],[17,39,17,40],[18,39,18,40],[19,39,19,40],[20,39,20,40],[21,39,21,40],[22,39,22,40],[23,39,23,40],[24,39,24,40],[25,39,25,40],[26,39,26,40],[27,39,27,40],[28,39,28,40],[29,39,29,40],[30,39,30,40],[31,39,31,40],[32,39,32,40],[33,39,33,40],[34,39,34,40],[35,39,35,40]]}
[null,"FORMATO",{"$nulls":37},"CODIGO","GC-S4-F12"]
[null," BASE DE DATOS LISTA DE CHEQUEO ENTREGA  Y RECIBO  DE TURNO MÉDICO Y PERSONAL DE ENFERMERÍA",{"$nulls":37},"VERSIÓN",6]
[{"$nulls":39},"VIGENCIA","2022-01-05"]
[{"$nulls":39},"PAGINA 2 DE 3"]
["NOTA: Los criterios de evaluación corresponden :1 ( C) CUMLE 2  (NC) NO CUMPLE  (3) NO APLICA"]
["MES ","FECHA","SEDE","TURNO","SERVICIO","GENERALIDADES",{"$nulls":21},"TOTAL DE CRITERIOS CUMPLIDOS","TOTAL DE CRITERIOS EVALUADOS","TOTAL 1","EQUIPOS E INSUMOS",null,null,"TOTAL DE CRITERIOS CUMPLIDOS","TOTAL DE CRITERIOS EVALUADOS","TOTAL 2","N° CRITERIOS CUMPLIDOS","N° CRITERIOS EVALUADOS","% CUMPLIMIENTO","OBSERVACIONES",null,1,null,"MAÑANA",null,"OBSERVACIÓN","CANAIMA"]
[{"$nulls":5},1,2,3,4,5,6,7,8,9,10,11,12,13,14,15,16,17,18,19,20,21,22,{"$nulls":3},23,24,25,{"$nulls":8},2,null,"TARDE",null,"HOSPITALIZACIÓN","IPC"]
[{"$nulls":5},"La entrega y recibo de turno se realiza a la hora estipulada (7:00 am, 1:00 pm, 7:00 pm respectivamente). ","Esta presente todo el personal  que recibe y entrega turno (médicos, auxiliares de enfermería, enfermera Jefe). ","Se solicita a  los familiares que salgan de la habitación.","El personal cumple con el protocolo de lavado de manos antes y durante la entrega de turno.","Si  el paciente está dormido se despierta, si  tiene la cabeza  cubierta  descubrirla, para que las personas que reciben y entregan turno se den cuenta de las condiciones en que esta el paciente. ","En la entrega y recibo de turno se  identifica  al paciente por su nombre, no por el diagnóstico o número de cama","Realiza la verificación del estado de venopunción del paciente, liquidos, sondas, lesiones  del paciente,   identificación. ","Se brinda información sobre  la presentación del personal que ingresa al turno, derechos y deberes de los pacientes, barreras de seguridad respecto a los riesgos del paciente.","En el proceso de entrega y recibo de turno se expone por parte de la enfermera la situación del paciente en cuanto a  : 1.Diagnóstico","2.\nRiesgos","3.\nSignos vitales ","4.\nEstado de conciencia ","5.\nOxígeno que se está administrando,cantidad.","Líquidos intravenosos administrados, tipo de soluciónes o mezclas y cantidad por hora.,balance de líquidos del turno, balance acumulado para los turnos de la noche","Diuresis espontánea o por sonda, cantidad y características. ","Inmovilizaciónes.","Reporte de  Ayudas diagnósticas y/o terapéuticas realizadas o pendientes por realizar, Traslado pendiente, solicitud de ambulancia o no, información al familiar. ","Plan de manejo actual. ","Para las pacientes de ginecobtetricia, registre si tiene el recién nacido en alojamiento conjunto: sexo, vacunación,laboratorios, exámenes, procedimientos realizados y pendientes, si esta pendiente la salida, etc","Para los pacientes con lesiones en la piel, registre el estado  y la evolución de la misma. ( Si se realizá o no curación) ","Para los gestantes registre semanas de gestación, fetocardía,actividad uterina, movimientos fetales, perdidas vaginales. ","Entregue el paciente limpio y la unidad en orden.",{"$nulls":3},"Se informa sobre el estado del carro de paro: abierto, cerrado (completo e incompleto), monitor de signos vitales, electrocardiografo, desfibrilador, equipo de succión, laringoscopio, ambu.","Se reportan los equipos dañados y/o el estado de funcionamiento de los mismos, si hay daños en infraestructura.","Informe de  novedades acerca de insumos médicos, faltantes en medicamentos,  daño de equipos para proceso de exámenes diagnósticos, rayos X, etc, camas pendientes y/o inhabilitadas.",{"$nulls":8},3,null,"NOCHE",null,null,"EDUARDO SANTOS"]
[{"$nulls":27},{"$f":"COUNTIF(F9:AA9,1)","v":0},{"$f":"COUNTIF(F9:AA9,1)+COUNTIF(F9:AA9,2)","v":0},{"$f":"IFERROR(AB9/AC9,0)","v":{"v":0,"d":"0%"}},{"$nulls":3},{"$f":"COUNTIF(AE9:AG9,1)","v":0},{"$f":"COUNTIF(AE9:AG9,1)+COUNTIF(AE9:AG9,2)","v":0},{"$f":"IFERROR(AH9/AI9,0)","v":{"v":0,"d":"0%"}},{"$f":"SUM(AB9+AH9)","v":0},{"$f":"AC9+AI9","v":0},{"$f":"AK9/AL9","v":{"$error":"#DIV/0!"}},{"$nulls":7},"SIETE DE AGOSTO"]
[{"$nulls":27},0,0,{"$f":"IFERROR(AB10/AC10,0)","v":{"v":0,"d":"0%"}},{"$nulls":3},{"$f":"COUNTIF(AE10:AG10,1)","v":0},{"$f":"COUNTIF(AE10:AG10,1)+COUNTIF(AE10:AG10,2)","v":0},{"$f":"IFERROR(AH10/AI10,0)","v":{"v":0,"d":"0%"}},{"$f":"SUM(AB10+AH10)","v":0},{"$f":"AC10+AI10","v":0},{"$f":"AK10/AL10","v":{"$error":"#DIV/0!"}},{"$nulls":7},"PALMAS"]
[{"$nulls":27},0,0,{"v":0,"d":"0%"},{"$nulls":3},0,0,{"v":0,"d":"0%"},0,0,{"$error":"#DIV/0!"},{"$nulls":7},"CAGUAN"]
[{"$nulls":27},0,0,{"v":0,"d":"0%"},{"$nulls":3},0,0,{"v":0,"d":"0%"},0,0,{"$error":"#DIV/0!"},{"$nulls":7},"SAN LUIS"]
[{"$nulls":27},{"$f":"COUNTIF(F13:AA13,1)","v":0},0,{"v":0,"d":"0%"},{"$nulls":3},0,0,{"v":0,"d":"0%"},0,0,{"$error":"#DIV/0!"},{"$nulls":7},"FORTALECILLAS"]
[{"$nulls":27},0,0,{"v":0,"d":"0%"},{"$nulls":3},0,0,{"v":0,"d":"0%"},0,0,{"$error":"#DIV/0!"},{"$nulls":7},"VEGALARGA"]
[{"$nulls":27},0,0,{"v":0,"d":"0%"},{"$nulls":3},0,0,{"v":0,"d":"0%"},0,0,{"$error":"#DIV/0!"},{"$nulls":7},"GRANJAS"]
[{"$nulls":27},0,0,{"v":0,"d":"0%"},{"$nulls":3},0,0,{"v":0,"d":"0%"},0,0,{"$error":"#DIV/0!"}]
[{"$nulls":27},0,0,{"v":0,"d":"0%"},{"$nulls":3},0,0,{"v":0,"d":"0%"},0,0,{"$error":"#DIV/0!"}]
[{"$nulls":27},0,0,{"v":0,"d":"0%"},{"$nulls":3},0,0,{"v":0,"d":"0%"},0,0,{"$error":"#DIV/0!"}]
[{"$nulls":27},0,0,{"v":0,"d":"0%"},{"$nulls":3},0,0,{"v":0,"d":"0%"},0,0,{"$error":"#DIV/0!"}]
[{"$nulls":27},0,0,{"v":0,"d":"0%"},{"$nulls":3},0,0,{"v":0,"d":"0%"},0,0,{"$error":"#DIV/0!"}]
[{"$nulls":27},0,0,{"v":0,"d":"0%"},{"$nulls":3},0,0,{"v":0,"d":"0%"},0,0,{"$error":"#DIV/0!"}]
[{"$nulls":27},0,0,{"v":0,"d":"0%"},{"$nulls":3},0,0,{"v":0,"d":"0%"},0,0,{"$error":"#DIV/0!"}]
[{"$nulls":27},0,0,{"v":0,"d":"0%"},{"$nulls":3},0,0,{"v":0,"d":"0%"},0,0,{"$error":"#DIV/0!"}]
[{"$nulls":27},0,0,{"v":0,"d":"0%"},{"$nulls":3},0,0,{"v":0,"d":"0%"},0,0,{"$error":"#DIV/0!"}]
[{"$nulls":27},0,0,{"v":0,"d":"0%"},{"$nulls":3},0,0,{"v":0,"d":"0%"},0,0,{"$error":"#DIV/0!"}]
[{"$nulls":27},0,0,{"v":0,"d":"0%"},{"$nulls":3},0,0,{"v":0,"d":"0%"},0,0,{"$error":"#DIV/0!"}]
[{"$nulls":27},0,0,{"v":0,"d":"0%"},{"$nulls":3},0,0,{"v":0,"d":"0%"},0,0,{"$error":"#DIV/0!"}]
[{"$nulls":27},0,0,{"v":0,"d":"0%"},{"$nulls":3},0,0,{"v":0,"d":"0%"},0,0,{"$error":"#DIV/0!"}]
[{"$nulls":27},0,0,{"v":0,"d":"0%"},{"$nulls":3},0,0,{"v":0,"d":"0%"},0,0,{"$error":"#DIV/0!"}]
[{"$nulls":27},0,0,{"v":0,"d":"0%"},{"$nulls":3},0,0,{"v":0,"d":"0%"},0,0,{"$error":"#DIV/0!"}]
[{"$nulls":27},0,0,{"v":0,"d":"0%"},{"$nulls":3},0,0,{"v":0,"d":"0%"},0,0,{"$error":"#DIV/0!"}]
[{"$nulls":27},0,0,{"v":0,"d":"0%"},{"$nulls":3},0,0,{"v":0,"d":"0%"},0,0,{"$error":"#DIV/0!"}]
[{"$nulls":27},0,0,{"v":0,"d":"0%"},{"$nulls":3},0,0,{"v":0,"d":"0%"},0,0,{"$error":"#DIV/0!"}]
[{"$nulls":27},0,0,{"v":0,"d":"0%"},{"$nulls":3},0,0,{"v":0,"d":"0%"},0,0,{"$error":"#DIV/0!"}]
[{"$nulls":27},0,0,{"v":0,"d":"0%"},{"$nulls":3},0,0,{"v":0,"d":"0%"},0,0,{"$error":"#DIV/0!"}]
[{"$nulls":27},0,0,{"v":0,"d":"0%"},{"$nulls":3},0,{"$f":"COUNTIF(AE36:AG36,1)+COUNTIF(AE36:AG36,2)","v":0},{"v":0,"d":"0%"},0,{"$f":"AC36+AI36","v":0},{"$error":"#DIV/0!"}]

{"sheet":"Instructivo","index":2,"n_rows":39,"n_cols":9,"rows_kept":39,"merged":[[0,0,3,0],[0,1,0,6],[1,1,3,6],[3,7,3,8],[4,0,4,8],[5,0,5,8],[6,0,6,8],[7,0,7,1],[7,2,7,8],[8,0,8,1],[8,2,8,8],[9,0,9,8],[10,0,10,8],[11,0,11,8],[12,0,12,1],[12,2,12,8],[13,0,13,1],[13,2,13,8],[14,0,14,1],[14,2,14,8],[15,0,15,1],[15,2,15,8],[16,0,16,8],[17,0,17,8],[18,0,18,8],[19,0,19,1],[19,2,19,8],[20,0,20,1],[20,2,20,8],[21,0,21,1],[21,2,21,8],[22,0,22,1],[22,2,22,8],[23,0,23,1],[23,2,23,8],[24,0,24,1],[24,2,24,8],[25,0,25,1],[25,2,25,8],[26,0,26,1],[26,2,26,8],[27,0,27,1],[27,2,27,8],[28,0,28,8],[29,0,29,8],[30,0,30,2],[30,3,30,5],[30,6,30,8],[31,0,31,2],[31,3,31,5],[31,6,31,8],[32,0,32,2],[32,3,32,5],[32,6,32,8],[33,0,33,2],[33,3,33,5],[33,6,33,8],[34,0,34,2],[34,3,34,5],[34,6,34,8],[35,0,35,2],[35,3,35,5],[35,6,35,8],[36,0,36,2],[36,3,36,5],[36,6,36,8],[37,0,37,2],[37,3,37,5],[37,6,37,8],[38,0,38,2],[38,3,38,5],[38,6,38,8]]}
[null,"FORMATO",{"$nulls":5},"CODIGO","GC-S4-F12"]
[null," BASE DE DATOS LISTA DE CHEQUEO ENTREGA  Y RECIBO  DE TURNO MÉDICO Y PERSONAL DE ENFERMERÍA",{"$nulls":5},"VERSIÓN",6]
[{"$nulls":7},"VIGENCIA","2022-01-05"]
[{"$nulls":7},"PAGINA 3 DE 3"]
[]
["INSTRUCTIVO PARA DILIGENCIAR EL FORMATO  \"LISTA DE CHEQUEO ENTREGA  Y RECIBO  DE TURNO MÉDICO Y PERSONAL DE ENFERMERIA\""]
[]
["OBJETIVO:",null,"Verificar a través de esta herramienta el cumplimiento del protocolo de entrega de turno. "]
["ALCANCE:",null,"Personal asistencial (Médico, enfermera, auxiliar de enfermería, entre otros) de  la E.S.E. Carmen Emilia Ospina."]
[]
["Para el diligenciamiento correcto del formato tenga en cuenta lo siguiente:"]
[]
["SEDE:",null,"Registrar la sede  habilitada donde se aplica la lista de chequeo entrega de turno y recibo de turno médico y personal de enfermería."]
["SERVICIO:",null,"Registrar el servicio en el que se aplica la lista de chequeo."]
["FECHA:",null,"Registrar día, mes y año en que se aplica la lista de chequeo."]
["TURNO:",null,"Registrar con una (X) la opción a la que corresponda el horario de aplicación de la lista de chequeo                 (Mañana, tarde o noche)"]
[]
["Desarrollo del formato:"]
[]
["ASPECTO",null,"Registro de los parámetros generales a evaluar (Generalidades -Equipos e insumos)"]
["No.¨:",null,"Registro del número de criterios a evaluar."]
["CRITERIOS",null,"Registro de las actividades que se deben tener en cuenta  en la aplicación de la lista de chequeo entrega de turno y recibo de turno médico y personal de enfermería."]
["CUMPLIMIENTO:",null,"Registrar con una \"X\" en la casilla (C) cumple,(NC) no cumple,(NA) No aplica, según las especificaciones registradas en cada una de los criterios."]
["OBSERVACIONES:",null,"Registrar la información que crea sea necesaria."]
["SUBTOTAL:",null,"Registrar en número el total de actividades que C (cumple) y NC  (no cumple).( NA) (no aplica) para cada uno de los aspectos establecidos."]
["NÚMERO DE CRITERIOS",null,"Registrar la sumatoria de los subtotales correspondiente a cada  uno aspectos establecidos."]
["% CUMPLIMIENTO",null,"Registrar  el resultado correspondiente  a el número  de  criterios que:(C)Cumple sobre (C)Cumple más (NC) No cumple) x100% "]
["NOMBRE Y FIRMA DEL AUDITOR :",null,"Registrar el nombre  completo y firma del auditor responsable de ejecutar la lista de chequeo."]
[]
["CONTROL DE CAMBIOS"]
["Versión",null,null,"Descripción del cambio",null,null,"Fecha de aprobación "]
[1,null,null,"Elaboración del documento.",null,null,"2014-03-07"]
[2,null,null,"Modificación del documento: Se actualiza la plantilla  y se realiza el instructivo para su correcto  diligenciamiento.",null,null,"2017-06-29"]
[3,null,null,"Modificación del documento: Se cambia  el nombre de \" Ítems\" a  \" Criterios\", se agrega el campo de (NA) No aplica dentro del cumplimiento de la actividad y el campo de Aspecto.  De igual manera se adicionan y  ajustas conceptos para los criterios a evaluar  en  la actividad. Con la finalidad  de fortalecer las acciones de seguimiento al programa de seguridad institucional.",null,null,"2018-01-18"]
[4,null,null,"Modificación del documento : Se elimina el ítems N° 5 por duplicidad de información con el ítems N° 23 . Dicho ajuste se realiza con la finalidad de obtener una mejora continua dentro del subproceso \" Evaluación y seguimiento\"",null,null,"2018-09-18"]
[5,null,null,"Traslado del documento : El formato GC-S6-F26 \" BASE DE DATOS LISTA DE CHEQUEO ENTREGA  Y RECIBO  DE TURNO MÉDICO Y PERSONAL DE ENFERMERÍA\" no corresponde al subproceso de evaluación y seguimiento y se traslada al subproceso de Seguridad del Paciente con el código GC-S4-F12, esto se realiza con el objetivo de brindar un mejoramiento continuo al proceso de Garantía de la Calidad.",null,null,"2019-01-21"]
[6,null,null,"Modificación del documento: Se Modifica el documento con el fin de obtener una mejora continua en el subproceso de \"Seguridad del paciente\". Los ajustes que se realizaron fueron los siguientes: \n- Ajustes estructurales \n- Actualización de la vigencia",null,null,"2022-01-05"]
["Nombre: Luisana Camarillo Peñaranda\nContratista del área garantía de la calidad\n\nNombre: Juan Felipe Cabrera Peña\nContratista del área garantía de la calidad",null,null,"Nombre: Irma Susana Bermúdez Acosta\nContratista del área garantía de la calidad",null,null,"Nombre: Jose Antonio Muñoz Paz\nCargo: Gerente"]
["Elaboró",null,null,"Revisó",null,null,"Aprobó"]